[Event "*** Titled Tuesday Blitz"]
[Site "Chess.com"]
[Date "2020.04.28"]
[Round "5"]
[White "VinzentSpitzl"]
[Black "Charlottemillard17"]
[Result "1-0"]
[WhiteElo "2384"]
[BlackElo "1409"]
[TimeControl "180+1"]
[EndTime "10:53:47 PDT"]
[Termination "VinzentSpitzl won by checkmate"]

1. e4 {[%clk 0:03:00.9]} 1... e5 {[%clk 0:02:59.5]} 2. Nf3 {[%clk 0:02:59]} 2...
Nc6 {[%clk 0:02:58.6]} 3. Bb5 {[%clk 0:02:57.6]} 3... a6 {[%clk 0:02:58.2]} 4.
Ba4 {[%clk 0:02:56.1]} 4... Bc5 {[%clk 0:02:57.1]} 5. O-O {[%clk 0:02:54.9]}
5... b5 {[%clk 0:02:55.8]} 6. Bb3 {[%clk 0:02:54.1]} 6... Nf6 {[%clk 0:02:53.6]}
7. c3 {[%clk 0:02:49.3]} 7... O-O {[%clk 0:02:50.7]} 8. d4 {[%clk 0:02:47.5]}
8... exd4 {[%clk 0:02:50.3]} 9. cxd4 {[%clk 0:02:48.4]} 9... Bb6 {[%clk
0:02:41.3]} 10. Nc3 {[%clk 0:02:39.1]} 10... b4 {[%clk 0:02:35.3]} 11. Nd5
{[%clk 0:02:38.6]} 11... Nxe4 {[%clk 0:02:32.4]} 12. Nxb6 {[%clk 0:02:38.4]}
12... cxb6 {[%clk 0:02:31.5]} 13. Bf4 {[%clk 0:02:34.1]} 13... Qf6 {[%clk
0:02:15.4]} 14. Be5 {[%clk 0:02:16.7]} 14... Nxe5 {[%clk 0:01:57.1]} 15. dxe5
{[%clk 0:02:17.6]} 15... Qf4 {[%clk 0:01:45.9]} 16. Bd5 {[%clk 0:02:05.3]} 16...
Rb8 {[%clk 0:01:43.2]} 17. Qd4 {[%clk 0:01:55.8]} 17... Bb7 {[%clk 0:01:32.9]}
18. Bxb7 {[%clk 0:01:51.5]} 18... Rxb7 {[%clk 0:01:32]} 19. Rfe1 {[%clk
0:01:51.6]} 19... f5 {[%clk 0:01:05.5]} 20. Qd5+ {[%clk 0:01:45.1]} 20... Kh8
{[%clk 0:01:01.3]} 21. Qxb7 {[%clk 0:01:44]} 21... Rd8 {[%clk 0:00:54.9]} 22.
Qxb6 {[%clk 0:01:37.3]} 22... g5 {[%clk 0:00:49.9]} 23. Qxd8+ {[%clk 0:01:36.1]}
23... Kg7 {[%clk 0:00:49.6]} 24. Qxd7+ {[%clk 0:01:34.6]} 24... Kh6 {[%clk
0:00:49.8]} 25. Qe6+ {[%clk 0:01:32]} 25... Kh5 {[%clk 0:00:49.6]} 26. Qf7+
{[%clk 0:01:30]} 26... Kh6 {[%clk 0:00:43.1]} 27. Rxe4 {[%clk 0:01:24.3]} 27...
Qxe4 {[%clk 0:00:40.8]} 28. Qf6+ {[%clk 0:01:22.3]} 28... Kh5 {[%clk 0:00:38.6]}
29. Qxg5# {[%clk 0:01:22.2]} 1-0

[Event "*** Titled Tuesday Blitz"]
[Site "Chess.com"]
[Date "2020.04.28"]
[Round "5"]
[White "ChessBitl"]
[Black "bazar-wokzal"]
[Result "0-1"]
[WhiteElo "2293"]
[BlackElo "2505"]
[TimeControl "180+1"]
[EndTime "10:53:48 PDT"]
[Termination "bazar-wokzal won by resignation"]

1. e4 {[%clk 0:03:00.4]} 1... Nc6 {[%clk 0:02:59.2]} 2. Nf3 {[%clk 0:02:59]}
2... d5 {[%clk 0:02:58.9]} 3. exd5 {[%clk 0:02:58.6]} 3... Qxd5 {[%clk
0:02:59.5]} 4. Nc3 {[%clk 0:02:59]} 4... Qa5 {[%clk 0:02:59.3]} 5. d4 {[%clk
0:02:57.6]} 5... Bg4 {[%clk 0:02:58]} 6. h3 {[%clk 0:02:57.1]} 6... Bxf3 {[%clk
0:02:57.3]} 7. Qxf3 {[%clk 0:02:56.2]} 7... O-O-O {[%clk 0:02:57.8]} 8. Be3
{[%clk 0:02:52.1]} 8... e5 {[%clk 0:02:57.2]} 9. dxe5 {[%clk 0:02:45.6]} 9...
Ba3 {[%clk 0:02:54.1]} 10. Bd2 {[%clk 0:02:21]} 10... Bxb2 {[%clk 0:02:41.3]}
11. Rb1 {[%clk 0:02:20.7]} 11... Qxe5+ {[%clk 0:02:36.5]} 12. Be2 {[%clk
0:02:16.5]} 12... Nd4 {[%clk 0:02:31.6]} 13. Qe4 {[%clk 0:02:00.9]} 13... Qxe4
{[%clk 0:02:20.9]} 14. Nxe4 {[%clk 0:02:01.3]} 14... Ba3 {[%clk 0:02:10.3]} 15.
Bg4+ {[%clk 0:02:00.3]} 15... f5 {[%clk 0:02:09.1]} 16. c3 {[%clk 0:02:00.6]}
16... fxg4 {[%clk 0:01:59.1]} 17. cxd4 {[%clk 0:02:00.5]} 17... Re8 {[%clk
0:01:58.7]} 18. f3 {[%clk 0:01:59]} 18... gxf3 {[%clk 0:01:58.8]} 19. gxf3
{[%clk 0:01:59]} 19... Nf6 {[%clk 0:01:59.1]} 20. O-O {[%clk 0:01:52.7]} 20...
Nxe4 {[%clk 0:01:56.7]} 21. fxe4 {[%clk 0:01:53.2]} 21... Rxe4 {[%clk 0:01:56]}
22. Rf7 {[%clk 0:01:49]} 22... Rxd4 {[%clk 0:01:52.9]} 23. Bf4 {[%clk
0:01:41.8]} 23... Bd6 {[%clk 0:01:45.8]} 24. Bxd6 {[%clk 0:01:38]} 24... Rxd6
{[%clk 0:01:45.3]} 25. Rxg7 {[%clk 0:01:38.1]} 25... Rg6+ {[%clk 0:01:44.1]} 26.
Rxg6 {[%clk 0:01:38.2]} 26... hxg6 {[%clk 0:01:44.5]} 27. Kg2 {[%clk 0:01:35.8]}
27... Rh4 {[%clk 0:01:43]} 28. Rf1 {[%clk 0:01:32.6]} 28... Ra4 {[%clk
0:01:40.7]} 29. Rf2 {[%clk 0:01:23]} 29... c5 {[%clk 0:01:37.8]} 30. Kg3 {[%clk
0:01:21.9]} 30... c4 {[%clk 0:01:34.6]} 31. Rf6 {[%clk 0:01:22.2]} 31... c3
{[%clk 0:01:31.1]} 32. Rxg6 {[%clk 0:01:20.4]} 32... c2 {[%clk 0:01:29.1]} 33.
Rg8+ {[%clk 0:01:20.4]} 33... Kc7 {[%clk 0:01:28.6]} 34. Rg7+ {[%clk 0:01:20.5]}
34... Kb6 {[%clk 0:01:27.2]} 35. Rg6+ {[%clk 0:01:20.8]} 35... Kb5 {[%clk
0:01:21.3]} 36. Rg5+ {[%clk 0:01:20.7]} 36... Kb4 {[%clk 0:01:20.5]} 37. a3+
{[%clk 0:01:11.9]} 37... Rxa3+ {[%clk 0:01:17.6]} 0-1

[Event "*** Titled Tuesday Blitz"]
[Site "Chess.com"]
[Date "2020.04.28"]
[Round "5"]
[White "queen_iryna"]
[Black "eightbyeightchess"]
[Result "0-1"]
[WhiteElo "2271"]
[BlackElo "2493"]
[TimeControl "180+1"]
[EndTime "10:53:55 PDT"]
[Termination "eightbyeightchess won by checkmate"]

1. d4 {[%clk 0:03:00.9]} 1... d5 {[%clk 0:02:52.8]} 2. Nc3 {[%clk 0:02:58.9]}
2... Nf6 {[%clk 0:02:52.2]} 3. Bg5 {[%clk 0:02:58.3]} 3... Bf5 {[%clk
0:02:51.7]} 4. Bxf6 {[%clk 0:02:58.1]} 4... gxf6 {[%clk 0:02:52.6]} 5. e3 {[%clk
0:02:58.7]} 5... Nc6 {[%clk 0:02:50.3]} 6. Bd3 {[%clk 0:02:58.1]} 6... Bg6
{[%clk 0:02:46.3]} 7. Nge2 {[%clk 0:02:57.6]} 7... Rg8 {[%clk 0:02:45.1]} 8. Ng3
{[%clk 0:02:57.2]} 8... e6 {[%clk 0:02:43.5]} 9. h4 {[%clk 0:02:23]} 9... Bxd3
{[%clk 0:02:40.8]} 10. Qxd3 {[%clk 0:02:23.9]} 10... f5 {[%clk 0:02:41.2]} 11.
O-O-O {[%clk 0:02:19.6]} 11... Bd6 {[%clk 0:02:39.5]} 12. Nce2 {[%clk
0:02:15.1]} 12... Qd7 {[%clk 0:02:37.1]} 13. a3 {[%clk 0:02:13.1]} 13... O-O-O
{[%clk 0:02:36.4]} 14. Kb1 {[%clk 0:02:10.1]} 14... Kb8 {[%clk 0:02:33.1]} 15.
c4 {[%clk 0:02:07.2]} 15... dxc4 {[%clk 0:02:30.5]} 16. Qxc4 {[%clk 0:02:08.1]}
16... Na5 {[%clk 0:02:18.2]} 17. Qc3 {[%clk 0:01:58.6]} 17... Qa4 {[%clk
0:02:17.7]} 18. d5 {[%clk 0:01:45]} 18... Rg4 {[%clk 0:02:06.1]} 19. dxe6 {[%clk
0:01:37.2]} 19... Rc4 {[%clk 0:02:02.6]} 20. Qd3 {[%clk 0:01:28.1]} 20... fxe6
{[%clk 0:01:56.6]} 21. Rc1 {[%clk 0:01:11.8]} 21... Be7 {[%clk 0:01:47.2]} 22.
Rxc4 {[%clk 0:01:07.2]} 22... Nxc4 {[%clk 0:01:45]} 23. Qc3 {[%clk 0:00:58.9]}
23... Rd2 {[%clk 0:01:28.1]} 24. Qh8+ {[%clk 0:00:23.8]} 24... Bd8 {[%clk
0:01:26.8]} 25. Kc1 {[%clk 0:00:13.7]} 25... Qc2# {[%clk 0:01:25.2]} 0-1

[Event "*** Titled Tuesday Blitz"]
[Site "Chess.com"]
[Date "2020.04.28"]
[Round "5"]
[White "vanea_03"]
[Black "lolo9292"]
[Result "0-1"]
[WhiteElo "2673"]
[BlackElo "2490"]
[TimeControl "180+1"]
[EndTime "10:53:58 PDT"]
[Termination "lolo9292 won by resignation"]

1. d4 {[%clk 0:03:00.9]} 1... Nf6 {[%clk 0:03:00]} 2. c4 {[%clk 0:03:00.6]} 2...
g6 {[%clk 0:03:00.9]} 3. Nf3 {[%clk 0:02:59.8]} 3... Bg7 {[%clk 0:03:01.8]} 4.
e3 {[%clk 0:03:00.4]} 4... d6 {[%clk 0:03:02.7]} 5. Be2 {[%clk 0:03:00.5]} 5...
O-O {[%clk 0:03:03.6]} 6. O-O {[%clk 0:03:00.8]} 6... Nc6 {[%clk 0:03:03.8]} 7.
Nc3 {[%clk 0:03:00.8]} 7... e5 {[%clk 0:03:04.2]} 8. b3 {[%clk 0:02:41.4]} 8...
exd4 {[%clk 0:02:53.3]} 9. exd4 {[%clk 0:02:42.3]} 9... Bf5 {[%clk 0:02:51.7]}
10. Bb2 {[%clk 0:02:31.6]} 10... Re8 {[%clk 0:02:51.1]} 11. d5 {[%clk
0:02:25.6]} 11... Ne4 {[%clk 0:02:40.4]} 12. dxc6 {[%clk 0:01:52]} 12... Nxc3
{[%clk 0:02:39.9]} 13. Bxc3 {[%clk 0:01:50.6]} 13... Bxc3 {[%clk 0:02:40.8]} 14.
Rc1 {[%clk 0:01:50.9]} 14... Bb2 {[%clk 0:02:38.8]} 15. cxb7 {[%clk 0:01:47.9]}
15... Rb8 {[%clk 0:02:38.2]} 16. Qd2 {[%clk 0:01:44.2]} 16... Bxc1 {[%clk
0:02:37.8]} 17. Rxc1 {[%clk 0:01:45.1]} 17... Rxb7 {[%clk 0:02:37.1]} 18. Nd4
{[%clk 0:01:45.4]} 18... Bd7 {[%clk 0:02:36.2]} 19. Bf3 {[%clk 0:01:44.6]} 19...
Rb8 {[%clk 0:02:36.2]} 20. Bd5 {[%clk 0:01:39]} 20... Qf6 {[%clk 0:02:33.3]} 21.
h3 {[%clk 0:01:39.2]} 21... Re7 {[%clk 0:02:32.7]} 22. Rc3 {[%clk 0:01:39.4]}
22... Rbe8 {[%clk 0:02:31.8]} 23. Rf3 {[%clk 0:01:33.1]} 23... Qe5 {[%clk
0:02:29.5]} 24. Qd3 {[%clk 0:01:07.2]} 24... Qe1+ {[%clk 0:02:28.2]} 25. Kh2
{[%clk 0:01:06.6]} 25... Qe5+ {[%clk 0:02:28.6]} 26. g3 {[%clk 0:01:04.8]} 26...
c5 {[%clk 0:02:26.2]} 27. Nc2 {[%clk 0:01:00.4]} 27... Bf5 {[%clk 0:02:25]} 28.
Qd2 {[%clk 0:00:52.6]} 28... Qe2 {[%clk 0:02:18.1]} 29. Qxe2 {[%clk 0:00:52.5]}
29... Rxe2 {[%clk 0:02:18.9]} 30. Ne3 {[%clk 0:00:53.3]} 30... Be4 {[%clk
0:02:15.2]} 31. Bxf7+ {[%clk 0:00:44]} 31... Kg7 {[%clk 0:02:13.8]} 32. Rf4
{[%clk 0:00:44.5]} 32... Re7 {[%clk 0:02:10.2]} 33. Bd5 {[%clk 0:00:39.5]} 33...
Bxd5 {[%clk 0:02:07.1]} 34. Nxd5 {[%clk 0:00:33.9]} 34... Rf7 {[%clk 0:02:07.4]}
35. Kg2 {[%clk 0:00:13.2]} 35... Rxa2 {[%clk 0:02:06]} 36. Nc3 {[%clk
0:00:08.7]} 36... Rxf4 {[%clk 0:02:04.9]} 37. Nxa2 {[%clk 0:00:08.1]} 37... Rd4
{[%clk 0:02:03.7]} 38. Nc1 {[%clk 0:00:08.7]} 38... Rd1 {[%clk 0:02:03.2]} 39.
Ne2 {[%clk 0:00:09.2]} 39... Rd2 {[%clk 0:02:03.3]} 40. Nf4 {[%clk 0:00:08]}
40... Rb2 {[%clk 0:02:02.5]} 0-1

[Event "*** Titled Tuesday Blitz"]
[Site "Chess.com"]
[Date "2020.04.28"]
[Round "5"]
[White "guillembaches"]
[Black "CarlosRBorn"]
[Result "0-1"]
[WhiteElo "2428"]
[BlackElo "2682"]
[TimeControl "180+1"]
[EndTime "10:54:01 PDT"]
[Termination "CarlosRBorn won by resignation"]

1. e4 {[%clk 0:03:00.9]} 1... Nf6 {[%clk 0:02:59.8]} 2. e5 {[%clk 0:03:00.7]}
2... Nd5 {[%clk 0:03:00.1]} 3. c4 {[%clk 0:03:01]} 3... Nb6 {[%clk 0:03:00.1]}
4. d4 {[%clk 0:03:01.3]} 4... d6 {[%clk 0:03:00.5]} 5. exd6 {[%clk 0:03:01.4]}
5... exd6 {[%clk 0:03:01.4]} 6. Nc3 {[%clk 0:03:00.2]} 6... Be7 {[%clk
0:03:01.7]} 7. Be2 {[%clk 0:03:00.3]} 7... O-O {[%clk 0:03:00]} 8. h3 {[%clk
0:03:00.4]} 8... Be6 {[%clk 0:02:59.7]} 9. b3 {[%clk 0:02:58.2]} 9... d5 {[%clk
0:02:59]} 10. c5 {[%clk 0:02:56.7]} 10... Nc8 {[%clk 0:02:59.3]} 11. Nf3 {[%clk
0:02:53.1]} 11... Nc6 {[%clk 0:02:57.3]} 12. Be3 {[%clk 0:02:47.2]} 12... Bf6
{[%clk 0:02:57.3]} 13. O-O {[%clk 0:02:44.6]} 13... N8e7 {[%clk 0:02:57.1]} 14.
g4 {[%clk 0:02:40.8]} 14... h6 {[%clk 0:02:54.5]} 15. Qd2 {[%clk 0:02:37]} 15...
g5 {[%clk 0:02:53.1]} 16. Rad1 {[%clk 0:02:27.2]} 16... Bg7 {[%clk 0:02:52.8]}
17. Nh2 {[%clk 0:02:13.2]} 17... f5 {[%clk 0:02:52.1]} 18. f3 {[%clk 0:02:07]}
18... f4 {[%clk 0:02:49.5]} 19. Bf2 {[%clk 0:02:06.8]} 19... Bf7 {[%clk
0:02:46.5]} 20. Rfe1 {[%clk 0:02:01.1]} 20... Re8 {[%clk 0:02:46.2]} 21. Kg2
{[%clk 0:01:59.9]} 21... Qd7 {[%clk 0:02:45.4]} 22. a3 {[%clk 0:01:54.5]} 22...
a5 {[%clk 0:02:43.6]} 23. Bb5 {[%clk 0:01:47.1]} 23... Ng6 {[%clk 0:02:40.4]}
24. b4 {[%clk 0:01:37.9]} 24... axb4 {[%clk 0:02:39.8]} 25. axb4 {[%clk
0:01:38.8]} 25... Nf8 {[%clk 0:02:38.8]} 26. Rxe8 {[%clk 0:01:33.8]} 26... Rxe8
{[%clk 0:02:38.3]} 27. Re1 {[%clk 0:01:33.9]} 27... Rxe1 {[%clk 0:02:16.4]} 28.
Qxe1 {[%clk 0:01:33.7]} 28... Ne6 {[%clk 0:02:16]} 29. Ne2 {[%clk 0:01:26.7]}
29... Qc8 {[%clk 0:02:10.2]} 30. Qd2 {[%clk 0:01:20.3]} 30... Qa8 {[%clk
0:02:05.4]} 31. Bxc6 {[%clk 0:00:41.3]} 31... bxc6 {[%clk 0:02:05.4]} 32. Qb2
{[%clk 0:00:38.6]} 32... Qa4 {[%clk 0:01:59.6]} 33. Nf1 {[%clk 0:00:37.9]} 33...
Qd1 {[%clk 0:01:52.1]} 34. Qd2 {[%clk 0:00:34.1]} 34... Qa1 {[%clk 0:01:51.6]}
35. Qd3 {[%clk 0:00:29.7]} 35... Nf8 {[%clk 0:01:44.2]} 36. Nd2 {[%clk
0:00:26.5]} 36... Qd1 {[%clk 0:01:39.2]} 37. Qc3 {[%clk 0:00:23.5]} 37... Qxe2
{[%clk 0:01:38.8]} 0-1

[Event "*** Titled Tuesday Blitz"]
[Site "Chess.com"]
[Date "2020.04.28"]
[Round "5"]
[White "secretsuperstar7"]
[Black "AndrewDGreen"]
[Result "1-0"]
[WhiteElo "2192"]
[BlackElo "2287"]
[TimeControl "180+1"]
[EndTime "10:54:01 PDT"]
[Termination "secretsuperstar7 won by resignation"]

1. e4 {[%clk 0:03:00.9]} 1... c5 {[%clk 0:02:59.8]} 2. Nf3 {[%clk 0:02:59.3]}
2... g6 {[%clk 0:02:59.8]} 3. d4 {[%clk 0:02:58.5]} 3... cxd4 {[%clk 0:03:00.7]}
4. Nxd4 {[%clk 0:02:58.9]} 4... Nc6 {[%clk 0:03:00.2]} 5. Be3 {[%clk 0:02:57.9]}
5... Nf6 {[%clk 0:02:52.4]} 6. Nc3 {[%clk 0:02:57.1]} 6... Bg7 {[%clk 0:02:52]}
7. Be2 {[%clk 0:02:56.6]} 7... O-O {[%clk 0:02:51.5]} 8. O-O {[%clk 0:02:55.9]}
8... d5 {[%clk 0:02:51.6]} 9. exd5 {[%clk 0:02:49.5]} 9... Nb4 {[%clk
0:02:49.2]} 10. d6 {[%clk 0:02:37.3]} 10... Qxd6 {[%clk 0:02:47.2]} 11. a3
{[%clk 0:02:35.6]} 11... Nbd5 {[%clk 0:02:39.8]} 12. Ncb5 {[%clk 0:02:20]} 12...
Nxe3 {[%clk 0:02:21.4]} 13. Nxd6 {[%clk 0:02:17.5]} 13... Nxd1 {[%clk
0:02:21.6]} 14. Nxc8 {[%clk 0:02:17.4]} 14... Raxc8 {[%clk 0:02:16.5]} 15. Rfxd1
{[%clk 0:02:17.1]} 15... Rfd8 {[%clk 0:02:00.5]} 16. c3 {[%clk 0:02:13.3]} 16...
a6 {[%clk 0:01:35.1]} 17. Bf3 {[%clk 0:02:10.4]} 17... e5 {[%clk 0:01:19.6]} 18.
Nb3 {[%clk 0:02:09.3]} 18... e4 {[%clk 0:01:12]} 19. Be2 {[%clk 0:02:08.4]}
19... Nd5 {[%clk 0:01:04.4]} 20. Na5 {[%clk 0:01:58.4]} 20... Nf4 {[%clk
0:00:51.3]} 21. Kf1 {[%clk 0:01:42.8]} 21... b5 {[%clk 0:00:36.5]} 22. Nb7
{[%clk 0:01:35.8]} 22... Rxd1+ {[%clk 0:00:28.2]} 23. Rxd1 {[%clk 0:01:34.3]}
23... Be5 {[%clk 0:00:23]} 24. g3 {[%clk 0:01:27.8]} 24... Nxe2 {[%clk
0:00:20.1]} 25. Kxe2 {[%clk 0:01:28.7]} 25... Kg7 {[%clk 0:00:16.3]} 26. Ke3
{[%clk 0:01:28.3]} 26... Rc7 {[%clk 0:00:15.3]} 27. Nd6 {[%clk 0:01:25.9]} 27...
f5 {[%clk 0:00:12.7]} 28. Ne8+ {[%clk 0:01:25.5]} 28... Kf7 {[%clk 0:00:12]} 29.
Nxc7 {[%clk 0:01:26.1]} 29... Bxc7 {[%clk 0:00:12.3]} 30. Rd7+ {[%clk
0:01:26.6]} 1-0

[Event "*** Titled Tuesday Blitz"]
[Site "Chess.com"]
[Date "2020.04.28"]
[Round "5"]
[White "zajka-molotok"]
[Black "Dr_Thomas_Quilter"]
[Result "1-0"]
[WhiteElo "2395"]
[BlackElo "2184"]
[TimeControl "180+1"]
[EndTime "10:54:02 PDT"]
[Termination "zajka-molotok won by checkmate"]

1. d4 {[%clk 0:03:00.9]} 1... Nf6 {[%clk 0:02:55.3]} 2. c4 {[%clk 0:03:00.6]}
2... c5 {[%clk 0:02:53.3]} 3. d5 {[%clk 0:02:59.7]} 3... e5 {[%clk 0:02:54]} 4.
Nc3 {[%clk 0:02:58.6]} 4... d6 {[%clk 0:02:54]} 5. e4 {[%clk 0:02:58.2]} 5... g6
{[%clk 0:02:53.4]} 6. g3 {[%clk 0:02:48.9]} 6... Bg7 {[%clk 0:02:53.7]} 7. Bg2
{[%clk 0:02:49]} 7... O-O {[%clk 0:02:54.1]} 8. Nge2 {[%clk 0:02:49]} 8... Nh5
{[%clk 0:02:49.9]} 9. O-O {[%clk 0:02:43.9]} 9... f5 {[%clk 0:02:47]} 10. f4
{[%clk 0:02:38.4]} 10... exf4 {[%clk 0:02:42.1]} 11. Nxf4 {[%clk 0:02:37.1]}
11... Nxf4 {[%clk 0:02:39.8]} 12. Bxf4 {[%clk 0:02:35.7]} 12... Na6 {[%clk
0:02:33.1]} 13. Qd2 {[%clk 0:02:22.5]} 13... Nc7 {[%clk 0:02:23.5]} 14. Rae1
{[%clk 0:02:18.4]} 14... fxe4 {[%clk 0:02:19.8]} 15. Nxe4 {[%clk 0:02:16.1]}
15... Ne8 {[%clk 0:02:15.2]} 16. Bg5 {[%clk 0:01:56.1]} 16... Rxf1+ {[%clk
0:02:10]} 17. Rxf1 {[%clk 0:01:55.2]} 17... Qc7 {[%clk 0:01:51.7]} 18. b3 {[%clk
0:01:46.3]} 18... Bf5 {[%clk 0:01:49.1]} 19. Qf4 {[%clk 0:01:41.9]} 19... a6
{[%clk 0:01:35.5]} 20. g4 {[%clk 0:01:38.7]} 20... Bxe4 {[%clk 0:01:15.9]} 21.
Qxe4 {[%clk 0:01:32.9]} 21... Kh8 {[%clk 0:00:57]} 22. Qe6 {[%clk 0:01:29.2]}
22... Qc8 {[%clk 0:00:52.5]} 23. Rf7 {[%clk 0:01:17.4]} 23... b5 {[%clk
0:00:40.2]} 24. Qe7 {[%clk 0:01:02.4]} 24... bxc4 {[%clk 0:00:33.5]} 25. Rf8+
{[%clk 0:01:00.8]} 25... Bxf8 {[%clk 0:00:28.8]} 26. Qxf8# {[%clk 0:01:00.8]}
1-0

[Event "*** Titled Tuesday Blitz"]
[Site "Chess.com"]
[Date "2020.04.28"]
[Round "5"]
[White "capatl"]
[Black "Trankuilizer"]
[Result "0-1"]
[WhiteElo "2631"]
[BlackElo "2496"]
[TimeControl "180+1"]
[EndTime "10:54:05 PDT"]
[Termination "Trankuilizer won on time"]

1. c4 {[%clk 0:02:59.1]} 1... Nf6 {[%clk 0:02:58.7]} 2. Nc3 {[%clk 0:02:58.6]}
2... g6 {[%clk 0:02:56.7]} 3. g3 {[%clk 0:02:57.9]} 3... Bg7 {[%clk 0:02:56.5]}
4. Bg2 {[%clk 0:02:58.6]} 4... O-O {[%clk 0:02:57]} 5. Nf3 {[%clk 0:02:58.3]}
5... d6 {[%clk 0:02:57.2]} 6. O-O {[%clk 0:02:56.8]} 6... Nbd7 {[%clk
0:02:57.3]} 7. d3 {[%clk 0:02:49.2]} 7... e5 {[%clk 0:02:52]} 8. Rb1 {[%clk
0:02:47.4]} 8... a5 {[%clk 0:02:47.5]} 9. a3 {[%clk 0:02:47.2]} 9... Nc5 {[%clk
0:02:47.8]} 10. b4 {[%clk 0:02:46.2]} 10... axb4 {[%clk 0:02:48.7]} 11. axb4
{[%clk 0:02:46.8]} 11... Ne6 {[%clk 0:02:49.2]} 12. Bd2 {[%clk 0:02:38.2]} 12...
Nh5 {[%clk 0:02:39.4]} 13. Qc1 {[%clk 0:02:24.3]} 13... f5 {[%clk 0:02:38.2]}
14. Bh6 {[%clk 0:02:19.1]} 14... f4 {[%clk 0:02:38.1]} 15. Bxg7 {[%clk
0:02:18.8]} 15... Kxg7 {[%clk 0:02:39]} 16. c5 {[%clk 0:01:56.5]} 16... g5
{[%clk 0:02:33.4]} 17. cxd6 {[%clk 0:01:44]} 17... cxd6 {[%clk 0:02:32.9]} 18.
Nd5 {[%clk 0:01:39.1]} 18... Nf6 {[%clk 0:02:27]} 19. Qc4 {[%clk 0:01:19.9]}
19... Bd7 {[%clk 0:02:07.9]} 20. Rfc1 {[%clk 0:01:16.2]} 20... b5 {[%clk
0:01:49.1]} 21. Qb3 {[%clk 0:01:13.8]} 21... g4 {[%clk 0:01:49]} 22. Nxf6 {[%clk
0:01:09.7]} 22... Qxf6 {[%clk 0:01:47.5]} 23. Nd2 {[%clk 0:00:53.1]} 23... Nd4
{[%clk 0:01:38.8]} 24. Qd1 {[%clk 0:00:47.1]} 24... fxg3 {[%clk 0:01:34.9]} 25.
fxg3 {[%clk 0:00:37.5]} 25... Qf2+ {[%clk 0:01:27.8]} 0-1

[Event "*** Titled Tuesday Blitz"]
[Site "Chess.com"]
[Date "2020.04.28"]
[Round "5"]
[White "NIGWAPO"]
[Black "NemtsevIgor"]
[Result "1-0"]
[WhiteElo "2597"]
[BlackElo "2367"]
[TimeControl "180+1"]
[EndTime "10:54:06 PDT"]
[Termination "NIGWAPO won by resignation"]

1. Nf3 {[%clk 0:02:58.5]} 1... c6 {[%clk 0:02:59.7]} 2. c4 {[%clk 0:02:57.5]}
2... d6 {[%clk 0:02:59.6]} 3. g3 {[%clk 0:02:57.4]} 3... h6 {[%clk 0:02:59.6]}
4. Bg2 {[%clk 0:02:58]} 4... g5 {[%clk 0:02:59.8]} 5. d4 {[%clk 0:02:57.4]} 5...
Bg7 {[%clk 0:02:59.9]} 6. e3 {[%clk 0:02:54.7]} 6... Nd7 {[%clk 0:02:59]} 7. Nc3
{[%clk 0:02:55.3]} 7... Nf8 {[%clk 0:02:58.8]} 8. b4 {[%clk 0:02:54.8]} 8... Ng6
{[%clk 0:02:57.8]} 9. Bb2 {[%clk 0:02:54.7]} 9... g4 {[%clk 0:02:58.1]} 10. Nd2
{[%clk 0:02:54.4]} 10... h5 {[%clk 0:02:58.1]} 11. b5 {[%clk 0:02:53.6]} 11...
Bd7 {[%clk 0:02:56.6]} 12. Qb3 {[%clk 0:02:53.1]} 12... h4 {[%clk 0:02:52.2]}
13. a4 {[%clk 0:02:52.6]} 13... Nh6 {[%clk 0:02:32.2]} 14. a5 {[%clk 0:02:51.1]}
14... a6 {[%clk 0:02:25.3]} 15. Ke2 {[%clk 0:02:39]} 15... Nf5 {[%clk
0:02:21.6]} 16. Be4 {[%clk 0:02:37.1]} 16... Rh5 {[%clk 0:02:09]} 17. Na4 {[%clk
0:02:21.4]} 17... cxb5 {[%clk 0:02:03.8]} 18. Nb6 {[%clk 0:02:20.5]} 18... Rb8
{[%clk 0:01:25.6]} 19. Nxd7 {[%clk 0:02:14]} 19... Qxd7 {[%clk 0:01:25.8]} 20.
cxb5 {[%clk 0:02:14.6]} 20... axb5 {[%clk 0:01:19.9]} 21. Bd3 {[%clk 0:02:13.9]}
21... Kf8 {[%clk 0:01:15.2]} 22. Ne4 {[%clk 0:02:10.8]} 22... e5 {[%clk
0:00:51.4]} 23. d5 {[%clk 0:02:05.9]} 23... Kg8 {[%clk 0:00:45.2]} 24. Qxb5
{[%clk 0:02:04.6]} 24... Qe7 {[%clk 0:00:44.6]} 25. a6 {[%clk 0:02:02.7]} 25...
Nh6 {[%clk 0:00:25.6]} 26. Ba3 {[%clk 0:01:57.8]} 26... f5 {[%clk 0:00:20.8]}
27. Nxd6 {[%clk 0:01:56.5]} 27... f4 {[%clk 0:00:19]} 28. Bxg6 {[%clk
0:01:54.2]} 28... f3+ {[%clk 0:00:15.7]} 29. Kd2 {[%clk 0:01:53.3]} 29... Rg5
{[%clk 0:00:15.9]} 30. Ne4 {[%clk 0:01:51.1]} 30... Qd8 {[%clk 0:00:13.4]} 31.
Nxg5 {[%clk 0:01:50.3]} 31... Qxg5 {[%clk 0:00:13.2]} 32. a7 {[%clk 0:01:47.9]}
32... Ra8 {[%clk 0:00:10.7]} 33. Qxb7 {[%clk 0:01:47.7]} 33... Qxg6 {[%clk
0:00:10.9]} 34. Qxa8+ {[%clk 0:01:47.2]} 34... Kh7 {[%clk 0:00:11.8]} 35. Qc6
{[%clk 0:01:46.6]} 35... Nf5 {[%clk 0:00:11.3]} 36. Qxg6+ {[%clk 0:01:45.8]}
36... Kxg6 {[%clk 0:00:10.7]} 37. a8=Q {[%clk 0:01:46.7]} 1-0